[Event "Charlotte IM-C May 2022"]
[Site "Charlotte"]
[Date "2022.05.06"]
[Round "3.3"]
[White "Andrews, Todd"]
[Black "Johnson, Donald"]
[Result "0-1"]
[ECO "B86"]
[WhiteElo "2209"]
[BlackElo "2102"]
[Annotator "TA"]
[PlyCount "102"]
[EventDate "2022.05.04"]
[EventType "tourn"]
[EventCountry "USA"]
[SourceTitle "playchess.com"]
[Source "ChessBase"]
[SourceQuality "1"]
[TimeControl "5400+30"]

{[%evp 17,102,0,0,12,40,37,161,54,56,58,69,68,95,94,79,-38,-38,-23,34,-52,-67,-259,-275,-265,-144,-383,-225,-214,64,61,62,62,45,67,31,41,41,33,52,18,36,-195,-204,-193,-188,-354,-344,-348,-335,-343,-335,-333,-202,-380,-230,-256,-66,-96,0,-191,-191,-191,-191,-191,-191,-191,-191,-191,-191,-429,-191,-191,-191,-477,-357,-625,-625,-625,-613,-592,-397,-1760,-900,-5728,-4971,-1261,-1106]} 1. e4 {[%emt 0:00:13]} c5 {[%emt 0:02:03]} 2. Nf3 {[%emt 0:00:12]} d6 {[%emt 0:00:04]} 3. d4 {[%emt 0:00:09]} cxd4 {[%emt 0:00:01]} 4. Nxd4 {[%emt 0:00:14]} Nf6 {[%emt 0:00:02]} 5. Nc3 {[%emt 0:00:12]} a6 {[%emt 0:00:02]} 6. Bc4 {[%emt 0:00:18]} e6 {[%emt 0:00:05]} 7. a3 {[%emt 0:00:08]} b5 {[%emt 0:08:15]} 8. Ba2 {[%emt 0:00:17]} Bb7 {[%emt 0:05:22]} 9. O-O {[%emt 0:07:49]} Nbd7 {[%emt 0:03:59]} 10. Re1 {[%emt 0:09:23] B86: Sicilian Scheveningen/Najdorf: 6 Bc4, without early ...b5.} Qc7 {[%emt 0:11:45]} 11. Bg5 {[%emt 0:06:28][%cal Oa2e6] [#]} Nc5 $146 {[%emt 1:04:22] [#]} (11... Qb6 $14) ({Predecessor:} 11... h6 12. Bh4 g5 13. Bg3 Ne5 14. Qd2 Be7 15. Rad1 O-O-O 16. f3 g4 17. f4 Nc4 18. Bxc4 Qxc4 {1-0 (35) Crawley,G (2385)-Ady,J (2310) Barnsdale 1989}) 12. Qf3 {[%emt 0:14:36]} (12. Nd5 $1 $18 {[%mdl 512]} exd5 (12... Nxd5 13. exd5) 13. exd5+ Kd8 14. Qf3 (14. Qe2 Be7 $14)) 12... Be7 $14 {[%emt 0:00:00]} 13. b4 {[%emt 0:06:08]} Ncd7 {[%emt 0:00:00] [#]} 14. Bxe6 $1 {[%emt 0:01:16]} fxe6 {[%emt 0:00:00]} (14... Ne5 15. Qh3) 15. Nxe6 {[%emt 0:00:08]} Qc4 {[%emt 0:00:00]} 16. Nd5 {[%emt 0:07:31]} ({White has to play} 16. Nxg7+ $16 Kd8 17. Nf5) 16... Bxd5 $15 {[%emt 0:00:00]} (16... Nxd5 $2 17. exd5 Bxg5 18. Qh5+ g6 19. Qxg5 $18) 17. exd5 {[%emt 0:00:35]} Ne5 {[%emt 0:03:00]} (17... Rg8 18. Nxg7+ $1 {[%mdl 512]} Kf8 19. Rxe7 $1 {[%mdl 512]} Rxg7 20. Rxd7 $1 {[%mdl 512]} (20. Bxf6 Rxe7 21. Bxe7+ Kxe7 $11) 20... Rxd7 21. Qxf6+ Kg8 22. Qe6+ Rf7 23. Rc1 $16) (17... Kf7 $1 $11) 18. Rxe5 {[%emt 0:09:37]} dxe5 {[%emt 0:00:00][%cal Bd6e5,Be5e4][%mdl 32]} 19. d6 $2 {[%emt 0:00:10] [#]} e4 $1 $19 {[%emt 0:00:00]} 20. Qf5 {[%emt 0:01:11] [#]} Kf7 {[%emt 0:00:00]} (20... g6 21. Qe5 Kf7 22. Nc7 $18) 21. Nxg7 (21. Nc7 $17 h6 22. Nxa8 (22. Bxf6 $2 Bxf6 23. Nxa8 Qe6 $19) 22... hxg5 23. dxe7) 21... Kxg7 {[%emt 0:02:00]} (21... Bd8 $142 22. Nh5 (22. Bxf6 $2 Bxf6 23. Qd7+ Kg8 $19) 22... Qe6) 22. dxe7 {[%emt 0:02:17]} Qf7 {[%emt 0:00:00]} ({Black should try} 22... Qd4 $19 23. c3 Qd6) 23. Rd1 $14 {[%emt 0:00:02][%mdl 1024] White has compensation.} ({Don't blunder} 23. Qe5 $2 Rhe8 24. a4 (24. Bxf6+ $2 Qxf6 25. Qg3+ Kh8 $19) 24... bxa4 25. Rxa4 Rxe7 $19) 23... h6 $1 {[%emt 0:00:00]} 24. Bh4 {[%emt 0:01:52]} Rhe8 $1 {[%emt 0:00:00]} 25. Rd6 {[%emt 0:00:55]} Ng8 {[%emt 0:00:46]} 26. Qe5+ {[%emt 0:00:10]} Kh7 {[%emt 0:01:44][%cal Rg8e7]} 27. Qxe4+ {[%emt 0:00:36]} Kh8 {[%emt 0:00:00]} 28. h3 {[%emt 0:12:40] Strongly threatening Re6.} (28. f3 $5 {[%cal Rh4f2]} Rac8 29. Bf2 $16 (29. Rxa6 Rc4 $17)) 28... Rac8 $1 {[%emt 0:00:03]} 29. Bg3 $2 {[%emt 0:05:29]} (29. c3 $14 {stays ahead.}) 29... Qxe7 $19 {[%emt 0:00:36]} 30. Qd4+ {[%emt 0:00:09]} Qg7 {[%emt 0:00:13]} 31. Qd3 $2 {[%emt 0:00:19]} (31. Qd1) 31... Re1+ {[%emt 0:00:46]} 32. Kh2 {[%emt 0:00:01]} Qa1 {[%emt 0:00:26][%csl Ga1][%cal Re1h1]} 33. Bf4 {[%emt 0:00:44]} Rh1+ {[%emt 0:00:32]} 34. Kg3 {[%emt 0:00:01]} Qc3 {[%emt 0:01:24]} 35. Rd7 $2 {[%emt 0:00:00]} (35. Kh4 {might work better.} Qxd3 36. Be5+ Kh7 37. cxd3) 35... Qxd3+ {[%emt 0:00:00]} 36. cxd3 {[%emt 0:00:01]} Nf6 $2 {[%emt 0:00:22]} (36... Re1 $19 37. Rd6 Kg7) 37. Be5 $15 {[%emt 0:00:05]} Rf8 {[%emt 0:00:07]} ({Better is} 37... Rc6 $17 38. Rf7 Kg8 39. Rxf6 Rxf6 40. Bxf6 Rd1) 38. Rd8 $2 {[%emt 0:01:37]} Rxd8 $19 {[%emt 0:00:33]} 39. Bxf6+ {[%emt 0:00:01]} Kg8 {[%emt 0:01:28]} 40. Bxd8 {[%emt 0:00:01][%mdl 4096] Endgame KR-KB} Rd1 {[%emt 0:00:00]} 41. Kf4 {[%emt 0:00:31]} Rxd3 {[%emt 0:00:00]} 42. Bb6 {[%emt 0:00:02]} Rxa3 {[%emt 0:00:00]} 43. h4 $2 {[%emt 0:00:07]} (43. Ke4) 43... Ra4 {[%emt 0:00:00]} (43... Rc3 $142 {aiming for ...Rc4+.} 44. Ba5 Rc4+ 45. Kg3 Kf7) 44. Ba5 {[%emt 0:00:05]} Ra2 {[%emt 0:00:19]} 45. Bb6 {[%emt 0:00:29]} (45. Ke3 {is a better defense.}) 45... Rc2 {[%emt 0:00:30] ...Rc4+ is the strong threat.} 46. Ke5 $2 {[%emt 0:18:41]} (46. Kf5 Rc4 47. Ba5) 46... Rc4 {[%emt 0:00:34][%csl LRb4,LRh4]} 47. Ba5 {[%emt 0:00:00]} Rxh4 {[%emt 0:00:09]} 48. g3 {[%emt 0:00:00]} Rc4 {[%emt 0:00:22]} 49. f4 $2 {[%emt 0:00:00]} (49. Kf5) 49... h5 {[%emt 0:01:02] White must now prevent ...Rc3. Black is clearly winning.} 50. Kd5 {[%emt 0:02:00]} Kf7 {[%emt 0:00:18]} 51. Bd8 {[%emt 0:00:00]} Rxb4 {[%emt 0:00:09] Weighted Error Value: White=0.94/Black=0.44} 0-1

[Event "Charlotte IM-C May 2022"]
[Site "Charlotte"]
[Date "2022.05.06"]
[Round "3.4"]
[White "Fawole, John Oyeyemi"]
[Black "Zapata, Alonso"]
[Result "0-1"]
[ECO "A87"]
[WhiteElo "2118"]
[BlackElo "2367"]
[Annotator "TA"]
[PlyCount "138"]
[EventDate "2022.05.04"]
[EventType "tourn"]
[EventCountry "USA"]
[SourceTitle "playchess.com"]
[Source "ChessBase"]
[SourceQuality "1"]
[TimeControl "5400+30"]

{[%evp 19,138,69,73,52,75,0,0,0,0,0,0,0,0,-77,-31,-151,-143,-221,-229,-233,-219,-226,-227,-223,-196,-214,-202,-285,-233,-218,-219,-224,-170,-180,-183,-250,-251,-254,-257,-246,-239,-264,-241,-261,-267,-284,-305,-353,-345,-324,-304,-318,-299,-304,-304,-302,-298,-299,-295,-289,-287,-288,-227,-226,-172,-201,-200,-226,-226,-226,-226,-281,-256,-500,-470,-680,-678,-735,-694,-731,-693,-999,-880,-1298,-1486,-2067,-2012,-12835,-12835,-12837,-12837,-12839,-12839,-12840,-4019,-1589,-1436,-12841,-12842,-12843,-12843,-12845,-12844,-12844,-12841,-12841,-12841,-12842,-12843,-12843,-12843,-12843,-12843,-12844,-12844,-12845,-12845,-12846,-12847,-12847,-12847]} 1. d4 {[%emt 0:03:20]} f5 {[%emt 0:00:56]} 2. g3 {[%emt 0:00:18]} Nf6 {[%emt 0:00:10]} 3. Bg2 {[%emt 0:00:06]} g6 {[%emt 0:00:17]} 4. Nf3 {[%emt 0:00:08]} Bg7 {[%emt 0:00:15]} 5. O-O {[%emt 0:00:12]} O-O {[%emt 0:00:27]} 6. c4 {[%emt 0:00:09]} d6 {[%emt 0:00:20][%cal Bd7d6,Bd6e5,Be5e4][%mdl 32]} 7. Nc3 {[%emt 0:00:09]} c6 {[%emt 0:00:25]} 8. Qc2 {[%emt 0:03:16]} Qe8 {[%emt 0:05:26]} 9. b3 {[%emt 0:03:22]} e5 {[%emt 0:01:15]} 10. dxe5 {[%emt 0:00:50]} dxe5 {[%emt 0:02:08]} 11. Ba3 {[%emt 0:00:39] A87: Dutch Defence: Leningrad System: 5 Nf3.} Rf7 {[%emt 0:00:30]} 12. Bd6 {[%emt 0:01:32]} (12. Ng5 $16) 12... e4 $11 {[%emt 0:10:33]} 13. Ng5 {[%emt 0:08:25] The position is equal.} Rd7 {[%emt 0:01:14]} 14. Rad1 {[%emt 0:00:27]} Na6 {[%emt 1:13:34] [#]} 15. h4 $146 {[%emt 0:05:23]} ({Predecessor:} 15. Rfe1 Ng4 16. c5 Nb4 17. Qc1 e3 18. f4 Nf2 19. a3 Nxd1 20. Rxd1 Na6 21. Na2 {½-½ (40) Olsen,H (2245)-Mastoras,I (2300) Gausdal 1992}) 15... Ng4 {[%emt 0:00:00]} 16. e3 {[%emt 0:06:36]} (16. Qc1 $11) 16... Ne5 {[%emt 0:00:00]} (16... h6 $17 17. Nh3 Ne5) 17. Ncxe4 {[%emt 0:13:07]} fxe4 $17 {[%emt 0:00:00]} 18. Qxe4 {[%emt 0:15:07] [#]} (18. Bxe4 $17 {was worth a try.} Nf7 19. Nxf7 Rxf7 20. h5) 18... Rxd6 $1 $19 {[%emt 0:00:00][%mdl 512]} 19. Rxd6 {[%emt 0:00:19]} h6 {[%emt 0:00:00]} 20. Nf3 {[%emt 0:07:45]} Bf5 {[%emt 0:00:00][%cal Bc8f5,Bf5e4,Be4f3,Bf3g4][%mdl 32]} 21. Qf4 {[%emt 0:01:03]} Nc5 {[%emt 0:00:00] Prevents e4.} 22. e4 Bxe4 {[%emt 0:00:00]} 23. Qe3 {[%emt 0:06:20]} (23. Rd2 $142 Ned3 24. Qe3) 23... Nxf3+ {[%emt 0:00:00]} 24. Bxf3 {[%emt 0:23:57] [#]} Qf8 $1 {[%emt 0:05:00][%csl LRd6,LRf3]} 25. b4 {[%emt 0:00:30][%cal Of3e4]} (25. Bxe4 Qxd6) 25... Bxf3 {[%emt 0:00:00]} ({Weaker is} 25... Qxd6 26. bxc5 Qd4 27. Qxe4 $14 (27. Bxe4 Qxe3 28. fxe3 Re8 $11)) 26. bxc5 {[%emt 0:00:00]} Qf7 {[%emt 0:00:00]} 27. Re1 {[%emt 0:00:00]} (27. Qd3 $142) 27... Rf8 {[%emt 0:00:00]} 28. Qe7 {[%emt 0:00:00]} Bg4 {[%emt 0:00:00] A strong pair of Bishops.} 29. Qxf7+ {[%emt 0:00:00]} Kxf7 {[%emt 0:02:30]} 30. Kg2 {[%emt 0:02:30]} Bf6 {[%emt 0:00:30]} 31. f3 {[%emt 0:00:00]} Bc8 {[%emt 0:00:00]} 32. Re4 Bf5 {[%emt 0:01:00]} 33. Re2 {[%emt 0:00:00]} Be7 {[%emt 0:00:30]} 34. Rd1 {[%emt 0:00:00]} Bxc5 {[%emt 0:00:30]} 35. h5 {[%emt 0:02:30]} b6 {[%emt 0:00:30]} ({Not} 35... gxh5 36. Re5 Kg6 37. Rxc5 $18) 36. hxg6+ {[%emt 0:00:00]} Kxg6 {[%emt 0:00:00]} 37. g4 {[%emt 0:00:00]} Bc8 {[%emt 0:00:00]} 38. Re5 {[%emt 0:00:00]} Kg7 {[%emt 0:00:00]} 39. Kg3 {[%emt 0:00:00]} a5 {[%emt 0:00:00]} 40. f4 {[%emt 0:00:00]} Ba6 {[%emt 0:00:27]} 41. Re4 {[%emt 0:00:13]} Rf6 {[%emt 0:00:41]} 42. Rd7+ {[%emt 0:00:20]} Rf7 {[%emt 0:00:09]} 43. Rd2 {[%emt 0:00:31]} Re7 {[%emt 0:00:29]} 44. Rxe7+ {[%emt 0:01:32]} Bxe7 {[%emt 0:00:01]} 45. Rd4 {[%emt 0:01:12]} Kf7 {[%emt 0:00:17]} 46. Kf3 $2 {[%emt 0:00:22]} (46. a4) 46... c5 {[%emt 0:03:26] Black is clearly winning.} 47. Rd2 {[%emt 0:00:40]} (47. Rd7 $142 Bxc4 48. Rd2) 47... Bxc4 {[%emt 0:00:00]} 48. Ke4 a4 {[%emt 0:01:00]} 49. Rh2 {[%emt 0:02:10]} Bf8 {[%emt 0:00:00]} 50. Ke5 b5 {[%emt 0:00:00]} 51. g5 hxg5 {[%emt 0:01:30]} 52. fxg5 {[%emt 0:01:30]} Kg6 {[%emt 0:00:00]} 53. Rf2 {[%emt 0:00:00]} Be7 {[%emt 0:00:00]} 54. Rg2 {[%emt 0:00:16]} a3 {[%emt 0:00:00]} 55. Rc2 {[%emt 0:00:26]} Bxg5 {[%emt 0:00:00]} 56. Rg2 {[%emt 0:00:47]} Kh5 {[%emt 0:00:00] Strongly threatening ...Bc1.} 57. Rc2 {[%emt 0:00:30]} Be3 {[%emt 0:00:00]} 58. Ke4 {[%emt 0:00:08]} Bd4 {[%emt 0:00:00]} 59. Kf4 {[%emt 0:00:49]} Kg6 {[%emt 0:00:00]} 60. Ke4 {[%emt 0:00:10]} Kf6 {[%emt 0:04:30]} 61. Rh2 {[%emt 0:01:24]} Ke6 {[%emt 0:00:00]} 62. Rh6+ {[%emt 0:00:00]} Kd7 {[%emt 0:00:00]} 63. Rh2 {[%emt 0:00:00]} Bb2 {[%emt 0:00:00]} 64. Rh7+ {[%emt 0:00:36]} Kc6 {[%emt 0:00:00]} 65. Rh6+ {[%emt 0:00:17]} Kb7 {[%emt 0:00:00]} 66. Rh5 {[%emt 0:00:17]} Kb6 {[%emt 0:00:00]} 67. Rg5 {[%emt 0:01:09]} Bxa2 {[%emt 0:00:00]} 68. Kd3 {[%emt 0:00:11]} Bb1+ {[%emt 0:00:00]} 69. Kd2 {[%emt 0:00:03]} a2 {[%emt 0:00:00] Black took control after the opening.  Weighted Error Value: White=0.73/Black=0.13 (very precise)} 0-1

[Event "Charlotte IM-C May 2022"]
[Site "Charlotte"]
[Date "2022.05.06"]
[Round "3.5"]
[White "Rorrer, Grayson"]
[Black "Canty, James"]
[Result "1/2-1/2"]
[ECO "B81"]
[WhiteElo "2204"]
[BlackElo "2225"]
[Annotator "TA"]
[PlyCount "90"]
[EventDate "2022.05.04"]
[EventType "tourn"]
[EventCountry "USA"]
[SourceTitle "playchess.com"]
[Source "ChessBase"]
[SourceQuality "1"]
[TimeControl "5400+30"]

{[%evp 12,90,17,14,35,41,37,29,44,30,45,46,54,19,36,29,25,0,33,-20,2,-22,-11,-18,-9,-29,-16,-27,-20,-95,-91,-176,-176,-301,-314,-309,-311,-302,-308,-266,-272,-266,-178,-178,-175,-178,-162,-182,0,0,0,0,135,135,135,135,135,135,135,135,138,143,140,55,57,27,43,26,33,0,53,0,0,0,0,0,0,0,0,0,0]} 1. e4 {[%emt 0:00:03]} c5 {[%emt 0:00:05]} 2. Nf3 {[%emt 0:00:12]} d6 {[%emt 0:00:07]} 3. d4 {[%emt 0:00:10]} cxd4 {[%emt 0:00:06]} 4. Nxd4 {[%emt 0:00:10]} Nf6 {[%emt 0:00:04]} 5. Nc3 {[%emt 0:00:13]} a6 {[%emt 0:00:05]} 6. h3 {[%emt 0:00:14]} e6 {[%emt 0:00:06]} 7. g4 {[%emt 0:00:09][%cal Bg2g4,Bg4g5][%mdl 32]} Be7 {[%emt 0:00:06] B81: Sicilian Scheveningen: Keres Attack.} 8. g5 {[%emt 0:00:49]} Nfd7 {[%emt 0:00:06]} 9. Be3 {[%emt 0:00:49]} b5 {[%emt 0:00:28] White has an edge.} (9... Bxg5 10. Nxe6 $1 fxe6 11. Qh5+ g6 12. Qxg5 $16) 10. a3 {[%emt 0:00:17]} Bb7 {[%emt 0:00:05]} 11. h4 $1 {[%emt 0:01:14] The main line 11.h4 scores better than 11.Qd2.} Nc6 {[%emt 0:00:04]} 12. Qd2 {[%emt 0:06:09]} Nc5 {[%emt 0:00:22]} 13. Nxc6 {[%emt 0:07:07]} Bxc6 {[%emt 0:00:30] [#]} 14. Bg2 $146 {[%emt 0:00:22]} ({Predecessor:} 14. f3 Rb8 15. h5 O-O 16. b4 Nd7 17. O-O-O a5 {½-½ (17) Goumas,G (2402)-Levin,E (2502) Anogia 2019}) 14... Qb8 {[%emt 0:02:52]} 15. O-O {[%emt 0:04:47]} (15. h5 $14) 15... Qb7 {[%emt 0:00:45][%cal Rc5e4]} 16. f3 {[%emt 0:03:48]} (16. Nd5 $5) 16... h6 {[%emt 0:05:22]} 17. Rad1 {[%emt 0:10:36]} hxg5 {[%emt 0:01:26]} 18. hxg5 {[%emt 0:00:23]} O-O-O {[%emt 0:10:47]} 19. Ne2 {[%emt 0:07:46]} e5 {[%emt 0:06:08]} 20. Ng3 {[%emt 0:19:42]} (20. Nc3 $11) 20... g6 $1 $17 {[%emt 0:00:57]} 21. Qf2 {[%emt 0:01:24]} (21. Kf2 $17 {keeps fighting.}) 21... Ne6 $1 $19 {[%emt 0:01:22][%cal Bc5e6,Be6f4,Bf4e2][%mdl 32]} 22. Bb6 {[%emt 0:07:27]} (22. Qd2 $142) 22... Bxg5 {[%emt 0:03:13][%cal Oe6f4] White must now prevent ...Nf4!} 23. Bxd8 {[%emt 0:00:28]} Bxd8 {[%emt 0:00:08]} 24. Qd2 {[%emt 0:02:39]} (24. Rxd6 $2 Bb6 25. Ne2 Bxf2+ $19) 24... Bb6+ {[%emt 0:00:08]} 25. Rf2 {[%emt 0:00:02]} Nf4 {[%emt 0:01:37]} 26. Ne2 {[%emt 0:01:36]} Nxe2+ {[%emt 0:11:01]} (26... Bxf2+ $2 27. Kxf2 Nxg2 28. Kxg2 Bxe4 29. Kf2 $19) 27. Qxe2 {[%emt 0:00:09][%cal Od1d6]} Qe7 {[%emt 0:01:16]} ({And not} 27... Bxf2+ 28. Qxf2 Qc7 29. f4 $17) 28. Kf1 {[%emt 0:02:23][%cal Bg1f1,Bf1e2,Be2f2,Bf2e3,Be3d3][%mdl 32]} Rh2 {[%emt 0:03:10]} 29. Rd2 {[%emt 0:02:10]} Qh4 $2 {[%emt 0:10:47]} ({Inferior is} 29... Bxf2 30. Qxf2 Rh8 31. Qb6 $17) (29... Qg5 $19 {[%cal Og5g2] Threatens to win with ...Qxg2+!} 30. Ke1 Kc7) 30. Qd3 $1 $11 {[%emt 0:01:38]} Kb7 {[%emt 0:15:09] aiming for ...Qg5.} (30... Bc5 $5 31. b4 Bxf2 32. Qxd6 Kb7 $1 33. Rxf2 Qf4 $11) 31. Qxd6 {[%emt 0:04:01]} Rh1+ {[%emt 0:00:05]} 32. Bxh1 $16 {[%emt 0:00:15]} Qxh1+ {[%emt 0:00:04]} 33. Ke2 {[%emt 0:00:07]} Bxf2 {[%emt 0:00:04]} 34. Kxf2 {[%emt 0:02:56][%mdl 4096] Endgame KQR-KQB. The board is on fire.} Qh2+ {[%emt 0:00:01] [#]} 35. Ke3 $1 {[%emt 0:05:00]} Qg1+ {[%emt 0:00:02]} 36. Rf2 {[%emt 0:01:59] And now Qe7+ would win.} Qc1+ {[%emt 0:00:50] [#]} 37. Qd2 {[%emt 0:00:08]} (37. Ke2 $1 $16) 37... Qxb2 $14 {[%emt 0:00:05]} 38. Qb4 {[%emt 0:00:07]} (38. Qd6 $5 {[%cal Re3d2]}) 38... Qc1+ {[%emt 0:00:05]} 39. Kd3 {[%emt 0:00:21]} Kb6 {[%emt 0:00:30] Inhibits Qc5+.} 40. Rd2 {[%emt 0:01:37]} f5 {[%emt 0:01:00]} (40... Qh1 $11 41. Rf2 f5) 41. Qf8 {[%emt 0:01:36]} ({Much worse is} 41. Qd6 Qf1+ 42. Kc3 Qa1+ 43. Kd3 Qf1+ 44. Kc3 Qa1+ 45. Kd3 Qf1+ $11) (41. Ke2 $1 $14) 41... Qf1+ $11 {[%emt 0:02:14] The position is equal.} 42. Kc3 {[%emt 0:01:14]} Qa1+ {[%emt 0:00:05]} (42... Qxf3+ $2 43. Kb2 Qe3 44. Rd6 $18) 43. Kb3 {[%emt 0:00:24] White wants to mate with Qb8+.} Qb1+ {[%emt 0:00:18]} 44. Kc3 {[%emt 0:00:01]} Qa1+ {[%emt 0:00:06]} 45. Kd3 {[%emt 0:00:02]} Qf1+ {[%emt 0:00:05] White happily takes the draw.  Weighted Error Value: White=0.22 (precise) /Black=0.19 (very precise)} 1/2-1/2

[Event "Charlotte IM-C May 2022"]
[Site "Charlotte"]
[Date "2022.05.06"]
[Round "4.1"]
[White "Martin Del Campo Cardenas, Roberto Abel"]
[Black "Canty, James"]
[Result "1-0"]
[ECO "B30"]
[WhiteElo "2263"]
[BlackElo "2225"]
[Annotator "TA"]
[PlyCount "59"]
[EventDate "2022.05.04"]
[EventType "tourn"]
[EventCountry "USA"]
[SourceTitle "playchess.com"]
[Source "ChessBase"]
[SourceQuality "1"]
[TimeControl "5400+30"]

{[%evp 9,59,29,68,77,114,103,114,95,147,145,253,259,303,297,275,208,272,254,274,264,471,466,417,236,228,243,239,220,221,236,269,268,268,257,299,294,449,360,425,426,556,452,540,397,391,366,966,972,935,950,29998,29999]} 1. e4 {[%emt 0:00:28]} c5 {[%emt 0:00:06]} 2. Nf3 {[%emt 0:00:27]} Nc6 {[%emt 0:00:10]} 3. Nc3 {[%emt 0:00:21][%cal Bb1c3,Bc3e4,Be4c5][%mdl 32]} Nf6 {[%emt 0:00:10]} 4. Bb5 {[%emt 0:00:12] [#]} h5 $146 {[%emt 0:00:27]} ({Predecessor:} 4... Nd4 5. e5 Nxb5 6. Nxb5 Nd5 7. O-O a6 8. c4 Nb4 9. Nc3 d6 10. d4 cxd4 11. Qxd4 Nc2 12. Qe4 Nxa1 13. Bf4 Be6 14. Rxa1 Rc8 15. Nd5 dxe5 16. Nxe5 {1-0 (32) Firouzja,A (2754)-Rapport,R (2760) Stavanger 2021}) 5. h3 {[%emt 0:04:18]} a6 {[%emt 0:02:12]} 6. Bxc6 {[%emt 0:00:38] B30: Sicilian: 2...Nc6 3 Bb5, lines without ...g6.} bxc6 {[%emt 0:00:21]} 7. e5 {[%emt 0:02:42]} Nd5 {[%emt 0:00:08]} 8. Ne4 {[%emt 0:00:26] White is better.} Qb6 {[%emt 0:09:48]} (8... d6 $142) 9. O-O {[%emt 0:01:47]} Bb7 {[%emt 0:01:42]} (9... g6 $16 10. Re1 Nc7) 10. d3 $18 {[%emt 0:04:02]} a5 {[%emt 0:05:51]} 11. c4 {[%emt 0:03:51]} Nc7 {[%emt 0:01:28] [#]} 12. Nxc5 {[%emt 0:01:41][%mdl 512] aiming for Be3.} Bc8 {[%emt 0:00:15]} (12... Qxc5 $2 13. Be3 Qb4 14. a3 Qxb2 15. Bd4 Qxa1 16. Qxa1 $18) (12... Ne6 13. Nxe6) 13. Be3 {[%emt 0:03:58]} Qb8 {[%emt 0:00:44]} 14. Re1 {[%emt 0:06:54]} Na6 $2 {[%emt 0:05:59]} (14... g6 15. d4 Bg7) 15. Ne4 {[%emt 0:01:45]} e6 {[%emt 0:01:33]} 16. c5 {[%emt 0:10:30]} (16. d4 $142) 16... Nb4 {[%emt 0:07:31]} 17. a3 {[%emt 0:01:07]} Nd5 {[%emt 0:00:07]} 18. Bd4 {[%emt 0:00:02] Nfg5 is the strong threat.} Be7 {[%emt 0:00:43]} 19. Nfd2 {[%emt 0:10:11][%cal Bf3d2,Bd2c4,Bc4b6][%mdl 32]} f5 {[%emt 0:10:38]} 20. exf6 $1 {[%emt 0:06:07]} gxf6 {[%emt 0:00:06]} 21. Nc4 {[%emt 0:02:53] Strongly threatening Ncd6+.} Kd8 {[%emt 0:02:31]} 22. Ned6 {[%emt 0:03:57]} Kc7 {[%emt 0:00:46]} (22... Bxd6 {was worth a try.} 23. cxd6 c5) 23. Qf3 {[%emt 0:06:29]} Rg8 {[%emt 0:00:52]} 24. Nb6 {[%emt 0:05:05]} Ba6 {[%emt 0:04:40] [#]} 25. Nf5 $1 {[%emt 0:05:31][%mdl 512] Pair of Knights!} Bf8 {[%emt 0:05:25]} (25... Bd8 26. Nxa8+) 26. Nxa8+ {[%emt 0:04:00]} Qxa8 {[%emt 0:00:07]} 27. Ne3 {[%emt 0:00:03]} e5 $2 {[%emt 0:00:49]} (27... Nxe3 28. Bxe3 Be7 29. Qxh5 Qf8) 28. Nxd5+ {[%emt 0:00:19]} cxd5 {[%emt 0:00:05] [#]} 29. Qxf6 $1 {[%emt 0:00:07]} exd4 {[%emt 0:00:13]} (29... Qc6 30. Qxe5+) 30. Qb6+ {[%emt 0:00:03] Black did not feel at home in the position after the opening.  Weighted Error Value: White=0.25 (precise) /Black=0.82} 1-0

[Event "Charlotte IM-C May 2022"]
[Site "Charlotte"]
[Date "2022.05.06"]
[Round "4.2"]
[White "Zapata, Alonso"]
[Black "Rorrer, Grayson"]
[Result "1-0"]
[ECO "B87"]
[WhiteElo "2367"]
[BlackElo "2204"]
[Annotator "TA"]
[PlyCount "59"]
[EventDate "2022.05.04"]
[EventType "tourn"]
[EventCountry "USA"]
[SourceTitle "playchess.com"]
[Source "ChessBase"]
[SourceQuality "1"]
[TimeControl "5400+30"]

{[%evp 23,59,-27,-37,-35,-22,-27,-24,-14,-19,-55,-4,0,0,0,0,0,0,-15,0,2,0,-4,51,55,124,120,124,114,100,90,316,306,275,282,325,320,429,398]} 1. e4 {[%emt 0:04:17]} c5 {[%emt 0:00:10]} 2. Nf3 {[%emt 0:00:21]} d6 {[%emt 0:00:12]} 3. d4 {[%emt 0:00:16]} cxd4 {[%emt 0:00:11]} 4. Nxd4 {[%emt 0:00:06]} Nf6 {[%emt 0:00:11]} 5. Nc3 {[%emt 0:00:07]} a6 {[%emt 0:00:12]} 6. Bc4 {[%emt 0:00:29]} e6 {[%emt 0:00:12]} 7. O-O {[%emt 0:00:11]} b5 {[%emt 0:00:28]} 8. Bb3 {[%emt 0:00:05]} Be7 {[%emt 0:00:18]} 9. f4 {[%emt 0:01:05][%cal Bf2f4,Bf4f5][%mdl 32]} O-O {[%emt 0:01:25]} 10. f5 {[%emt 0:00:07]} e5 {[%emt 0:01:49]} 11. Nde2 {[%emt 0:00:06]} Bb7 {[%emt 0:01:11]} 12. Ng3 {[%emt 0:00:18]} Nbd7 {[%emt 0:01:01]} 13. Bg5 {[%emt 0:04:17] B87: Sicilian Scheveningen/Najdorf: 6 Bc4, with early ...b5.} b4 {[%emt 0:20:21]} 14. Bxf6 {[%emt 0:01:47]} ({Avoid the trap} 14. Nd5 $2 Nxd5 15. Bxe7 Nxe7 $19) 14... Nxf6 {[%emt 0:00:12]} 15. Nd5 {[%emt 0:01:33] Black has an edge.} Bxd5 {[%emt 0:01:52]} 16. Bxd5 {[%emt 0:00:11]} Rc8 {[%emt 0:01:17]} (16... Qb6+ $15 17. Kh1 Nxd5 18. exd5 Qc7) 17. Bb3 $11 {[%emt 0:04:07]} a5 {[%emt 0:01:36]} 18. Kh1 {[%emt 0:04:52]} Qb6 {[%emt 0:01:08] [#]} 19. Qe2 $146 {[%emt 0:08:26]} ({Predecessor:} 19. Nh5 Nxh5 20. Qxh5 Qe3 21. Rae1 Qg5 22. Qd1 h6 23. Rf3 Kh7 24. Ref1 Qf6 25. Qd5 {1-0 (33) Ciuksyte,D (2345)-Hegarty,S (2127) London 2013}) 19... Qa7 {[%emt 0:08:47]} 20. Rad1 {[%emt 0:01:59]} Qb7 {[%emt 0:07:43]} 21. Bc4 {[%emt 0:13:07]} Rc5 {[%emt 0:07:17]} 22. Rd2 {[%emt 0:05:15]} d5 {[%emt 0:13:24]} (22... Qc6 $11 23. b3 a4) 23. exd5 $14 {[%emt 0:01:13]} Nxd5 {[%emt 0:00:17]} (23... Bd6 $14) 24. Bxd5 {[%emt 0:01:58]} ({Not} 24. Ne4 Rxc4 $1 {[%mdl 512]} 25. Qxc4 Ne3 $17) 24... Rxd5 {[%emt 0:02:37]} 25. Rxd5 {[%emt 0:00:21]} Qxd5 {[%emt 0:00:02] [#]} 26. f6 $1 {[%emt 0:00:09]} Bd6 {[%emt 0:03:11] A mistake that costs the game.} (26... gxf6 $2 27. Qg4+ Kh8 28. Nf5 $18) (26... Bd8 $16) 27. Nf5 $18 {[%emt 0:05:13]} Rd8 {[%emt 0:02:20]} 28. fxg7 {[%emt 0:14:42] Intending Nh6+ and mate.} Qe6 {[%emt 0:00:53] Inhibits Nh6+.} 29. Qh5 {[%emt 0:06:38]} Rd7 {[%emt 0:00:53]} 30. Qg4 {[%emt 0:01:44] Weighted Error Value: White=0.01 (flawless) /Black=0.38} 1-0